[Event "OGD Prinsenstad-toernooi - A groep"]
[Site "Delft"]
[Date "2013.03.30"]
[Round "3.3"]
[White "L'Ami-Motoc, Alina"]
[Black "Reinderman, Dimitri"]
[Result "0-1"]
[ECO "C10"]
[WhiteElo "2381"]
[BlackElo "2573"]
[PlyCount "110"]
[EventDate "2013.03.29"]
[EventType "swiss"]
[EventRounds "6"]
[EventCountry "NED"]
[Source "DSC"]
[SourceDate "2013.02.04"]
[TimeControl "6000+10"]

1. d4 {[%emt 0:00:00]} e6 {[%emt 0:00:07]} 2. e4 {[%emt 0:00:37]} d5 {
[%emt 0:00:07]} 3. Nc3 {[%emt 0:01:07]} Nc6 {[%emt 0:00:24]} 4. Nf3 {
[%emt 0:03:01]} Nf6 {[%emt 0:00:12]} 5. Bg5 {[%emt 0:00:59]} Be7 {
[%emt 0:00:39]} 6. e5 {[%emt 0:09:01]} Ne4 {[%emt 0:01:01]} 7. Bxe7 {
[%emt 0:00:49]} Qxe7 {[%emt 0:00:22]} 8. a3 {[%emt 0:01:30]} Bd7 {
[%emt 0:04:01]} 9. Qd3 {[%emt 0:11:13]} Ng5 {[%emt 0:14:18]} 10. Nd2 {
[%emt 0:09:24]} f6 {[%emt 0:01:16]} 11. f4 {[%emt 0:00:53]} Nf7 {[%emt 0:01:00]
} 12. O-O-O {[%emt 0:06:41]} fxe5 {[%emt 0:15:39]} 13. fxe5 {[%emt 0:01:01]}
O-O-O {[%emt 0:00:26]} 14. h4 {[%emt 0:01:01]} Nh6 {[%emt 0:02:08]} 15. Nb3 {
[%emt 0:05:18]} Rdf8 {[%emt 0:06:30]} 16. Be2 {[%emt 0:05:03]} Nf5 {
[%emt 0:07:52]} 17. Qh3 {[%emt 0:04:45]} h5 {[%emt 0:01:23]} 18. Kb1 {
[%emt 0:04:39]} Be8 {[%emt 0:10:01]} 19. Bb5 {[%emt 0:05:33]} Rhg8 {
[%emt 0:08:12]} 20. Ne2 {[%emt 0:06:18]} g5 {[%emt 0:03:46]} 21. hxg5 {
[%emt 0:00:51]} Rxg5 {[%emt 0:00:12]} 22. Nc5 {[%emt 0:04:09]} b6 {
[%emt 0:06:04]} 23. Nb3 {[%emt 0:02:33]} h4 {[%emt 0:02:15]} 24. Qc3 {
[%emt 0:01:24]} Kb7 {[%emt 0:01:20]} 25. Rhg1 {[%emt 0:01:16]} a6 {
[%emt 0:02:17]} 26. Bd3 {[%emt 0:00:15]} Ng3 {[%emt 0:01:17]} 27. Nec1 {
[%emt 0:01:12]} Rf4 {[%emt 0:02:35]} 28. Na2 {[%emt 0:02:34]} Qf8 {
[%emt 0:02:23]} 29. Rge1 {[%emt 0:01:57]} Rf2 {[%emt 0:01:11]} 30. Rd2 {
[%emt 0:00:22]} Ne4 {[%emt 0:02:28]} 31. Rxe4 {[%emt 0:01:16]} dxe4 {
[%emt 0:00:03]} 32. Bxe4 {[%emt 0:00:03]} Rf1+ {[%emt 0:00:23]} 33. Nbc1 {
[%emt 0:00:31]} Qf4 {[%emt 0:00:43]} 34. Re2 {[%emt 0:04:16]} Rg3 {
[%emt 0:00:34]} 35. Qc4 {[%emt 0:00:32]} Bd7 {[%emt 0:01:14]} 36. d5 {
[%emt 0:00:18]} exd5 {[%emt 0:00:11]} 37. Qxd5 {[%emt 0:00:01]} Be8 {
[%emt 0:00:16]} 38. Qe6 {[%emt 0:01:47]} Qf7 {[%emt 0:00:42]} 39. Qxf7 {
[%emt 0:00:02]} Rxf7 {[%emt 0:00:02]} 40. Nb4 {[%emt 0:00:13]} a5 {
[%emt 0:00:09]} 41. Nd5 {[%emt 0:00:17]} Nxe5 {[%emt 0:00:33]} 42. Nd3 {
[%emt 0:00:57]} Nxd3 {[%emt 0:00:11]} 43. cxd3 {[%emt 0:00:16]} Bc6 {
[%emt 0:00:12]} 44. Rc2 {[%emt 0:00:02]} Rf1+ {[%emt 0:00:02]} 45. Ka2 {
[%emt 0:00:01]} Bxd5+ {[%emt 0:00:20]} 46. Bxd5+ {[%emt 0:00:01]} Kc8 {
[%emt 0:00:02]} 47. Be4 {[%emt 0:00:07]} Rf6 {[%emt 0:00:09]} 48. Rc1 {
[%emt 0:00:10]} Kd7 {[%emt 0:00:05]} 49. Kb3 {[%emt 0:00:04]} Rf4 {
[%emt 0:00:25]} 50. Kc4 {[%emt 0:00:09]} Rxg2 {[%emt 0:00:06]} 51. Kd5 {
[%emt 0:00:04]} Rg5+ {[%emt 0:00:06]} 52. Kd4 {[%emt 0:00:02]} h3 {
[%emt 0:00:04]} 53. Rh1 {[%emt 0:00:03]} Rh4 {[%emt 0:00:02]} 54. Ke3 {
[%emt 0:00:02]} h2 {[%emt 0:00:08]} 55. Bf3 {[%emt 0:00:09]} Rg1 {
[%emt 0:00:16]} 0-1

[Event "OGD Prinsenstad-toernooi - A groep"]
[Site "Delft"]
[Date "2013.03.30"]
[Round "3.4"]
[White "Haslinger, Stewart"]
[Black "Slingerland, Fred"]
[Result "1-0"]
[ECO "B67"]
[WhiteElo "2547"]
[BlackElo "2336"]
[PlyCount "89"]
[EventDate "2013.03.29"]
[EventType "swiss"]
[EventRounds "6"]
[EventCountry "NED"]
[Source "DSC"]
[SourceDate "2013.02.04"]
[TimeControl "6000+10"]

1. e4 c5 2. Nf3 d6 3. d4 Nf6 4. Nc3 cxd4 5. Nxd4 Nc6 6. Bg5 e6 7. Qd2 a6 8.
O-O-O Bd7 9. f3 b5 10. Kb1 Be7 11. Be3 Ne5 12. f4 b4 13. fxe5 bxc3 14. Qxc3
Nxe4 15. Qe1 d5 16. Bd3 Nc5 17. Qg3 g6 18. Rhf1 Nxd3 19. Rxd3 h5 20. Qf2 Rh7
21. Bd2 Kf8 22. Rf3 Qe8 23. Qg3 Kg8 24. Bg5 Bb5 25. Rd1 Rc8 26. Bxe7 Qxe7 27.
Rf6 Bd7 28. Rdf1 Rb8 29. b3 a5 30. Nf3 Rg7 31. Ng5 Be8 32. a4 Qa3 33. Qf3 Rb7
34. Nxe6 Bxa4 35. Nd4 Qc5 36. Qf4 Be8 37. e6 a4 38. Qe3 Kh7 39. Re1 axb3 40.
cxb3 Rb4 41. Nf3 d4 42. Ng5+ Kh8 43. exf7 Bxf7 44. Nxf7+ Rxf7 45. Qe8+ 1-0

[Event "OGD Prinsenstad-toernooi - A groep"]
[Site "Delft"]
[Date "2013.03.30"]
[Round "3.5"]
[White "De Wit, Michel"]
[Black "Kohlweyer, Bernd"]
[Result "1/2-1/2"]
[ECO "B22"]
[WhiteElo "2260"]
[BlackElo "2460"]
[PlyCount "76"]
[EventDate "2013.03.29"]
[EventType "swiss"]
[EventRounds "6"]
[EventCountry "NED"]
[Source "DSC"]
[SourceDate "2013.02.04"]
[TimeControl "6000+10"]

1. e4 c5 {[%emt 0:10:39]} 2. c3 {[%emt 0:00:27]} Nf6 {[%emt 0:00:40]} 3. e5 {
[%emt 0:00:16]} Nd5 {[%emt 0:00:06]} 4. Nf3 {[%emt 0:00:07]} e6 {[%emt 0:00:42]
} 5. d4 {[%emt 0:00:13]} cxd4 {[%emt 0:00:06]} 6. cxd4 {[%emt 0:00:04]} d6 {
[%emt 0:00:08]} 7. Nc3 {[%emt 0:00:22]} Nxc3 {[%emt 0:00:08]} 8. bxc3 {
[%emt 0:00:06]} Qc7 {[%emt 0:00:08]} 9. Bb2 {[%emt 0:00:27]} Nd7 {
[%emt 0:00:23]} 10. exd6 {[%emt 0:00:39]} Bxd6 {[%emt 0:00:08]} 11. Bd3 {
[%emt 0:00:22]} b6 {[%emt 0:01:44]} 12. O-O {[%emt 0:00:12]} Bb7 {
[%emt 0:00:03]} 13. h3 {[%emt 0:00:07]} O-O {[%emt 0:01:23]} 14. Re1 {
[%emt 0:00:18]} Rfe8 {[%emt 0:11:38]} 15. c4 {[%emt 0:04:01]} Rad8 {
[%emt 0:17:44]} 16. Qe2 {[%emt 0:10:15]} Bb4 {[%emt 0:04:08]} 17. Red1 {
[%emt 0:01:14]} Bxf3 {[%emt 0:01:23]} 18. Qxf3 {[%emt 0:01:31]} e5 {
[%emt 0:00:06]} 19. dxe5 {[%emt 0:08:48]} Nxe5 {[%emt 0:01:19]} 20. Bxh7+ {
[%emt 0:00:22]} Kxh7 {[%emt 0:02:28]} 21. Qh5+ {[%emt 0:00:28]} Kg8 {
[%emt 0:00:07]} 22. Rxd8 {[%emt 0:00:17]} Qxd8 {[%emt 0:00:40]} 23. Bxe5 {
[%emt 0:00:16]} Qd2 {[%emt 0:03:43]} 24. f4 {[%emt 0:03:11]} Bc3 {
[%emt 0:02:19]} 25. Rd1 {[%emt 0:05:49]} Qe3+ {[%emt 0:00:42]} 26. Kh1 {
[%emt 0:00:10]} Bxe5 {[%emt 0:00:17]} 27. fxe5 {[%emt 0:00:07]} g6 {
[%emt 0:03:52]} 28. Qh4 {[%emt 0:00:46]} Qxe5 {[%emt 0:01:31]} 29. Rd8 {
[%emt 0:01:23]} Rxd8 {[%emt 0:00:33]} 30. Qxd8+ {[%emt 0:00:06]} Kg7 {
[%emt 0:00:05]} 31. Qd2 {[%emt 0:00:17]} g5 {[%emt 0:04:38]} 32. Qc2 {
[%emt 0:01:14]} Qd4 {[%emt 0:02:06]} 33. Qf5 {[%emt 0:01:53]} f6 {
[%emt 0:00:10]} 34. Qe6 {[%emt 0:00:15]} a5 {[%emt 0:00:35]} 35. a4 {
[%emt 0:01:06]} Kg6 {[%emt 0:03:37]} 36. g4 {[%emt 0:01:21]} Qd1+ {
[%emt 0:02:26]} 37. Kg2 {[%emt 0:00:37]} Qxa4 {[%emt 0:00:06]} 38. Qg8+ {
[%emt 0:00:10]} Kh6 {[%emt 0:00:04]} 1/2-1/2

[Event "OGD Prinsenstad-toernooi - A groep"]
[Site "Delft"]
[Date "2013.03.30"]
[Round "3.6"]
[White "Andersson, Ulf"]
[Black "Freeke, Matthieu"]
[Result "1-0"]
[ECO "A05"]
[WhiteElo "2562"]
[BlackElo "2320"]
[PlyCount "109"]
[EventDate "2013.03.29"]
[EventType "swiss"]
[EventRounds "6"]
[EventCountry "NED"]
[Source "DSC"]
[SourceDate "2013.02.04"]
[TimeControl "6000+10"]

1. Nf3 {[%emt 0:06:23]} Nf6 {[%emt 0:00:07]} 2. c4 {[%emt 0:00:30]} e6 {
[%emt 0:00:06]} 3. g3 {[%emt 0:00:57]} d5 {[%emt 0:00:11]} 4. d4 {
[%emt 0:01:07]} Bb4+ {[%emt 0:00:26]} 5. Bd2 {[%emt 0:00:35]} a5 {
[%emt 0:00:10]} 6. Qc2 {[%emt 0:04:34]} O-O {[%emt 0:00:22]} 7. Bg2 {
[%emt 0:00:13]} c5 {[%emt 0:00:30]} 8. cxd5 {[%emt 0:02:15]} cxd4 {
[%emt 0:00:05]} 9. Nxd4 {[%emt 0:01:45]} Qb6 {[%emt 0:02:15]} 10. e3 {
[%emt 0:05:14]} exd5 {[%emt 0:02:31]} 11. O-O {[%emt 0:00:46]} Nc6 {
[%emt 0:00:39]} 12. Nxc6 {[%emt 0:04:59]} bxc6 {[%emt 0:01:10]} 13. Rc1 {
[%emt 0:00:46]} Bd7 {[%emt 0:05:38]} 14. Nc3 {[%emt 0:05:56]} Rab8 {
[%emt 0:11:53]} 15. Na4 {[%emt 0:05:50]} Qa7 {[%emt 0:04:38]} 16. Bxb4 {
[%emt 0:06:43]} axb4 {[%emt 0:00:17]} 17. Nc5 {[%emt 0:00:30]} Rfc8 {
[%emt 0:04:32]} 18. a3 {[%emt 0:02:43]} b3 {[%emt 0:16:36]} 19. Nxb3 {
[%emt 0:03:09]} Qb6 {[%emt 0:02:45]} 20. Nc5 {[%emt 0:00:59]} Qxb2 {
[%emt 0:01:11]} 21. Qxb2 {[%emt 0:00:36]} Rxb2 {[%emt 0:00:02]} 22. Nxd7 {
[%emt 0:00:23]} Nxd7 {[%emt 0:00:05]} 23. Bxd5 {[%emt 0:00:34]} Rb6 {
[%emt 0:00:36]} 24. a4 {[%emt 0:07:23]} Kf8 {[%emt 0:02:10]} 25. a5 {
[%emt 0:01:29]} Ra6 {[%emt 0:00:08]} 26. Bc4 {[%emt 0:01:33]} Ra7 {
[%emt 0:00:09]} 27. Ra2 {[%emt 0:05:39]} Ke7 {[%emt 0:01:48]} 28. f4 {
[%emt 0:05:44]} Rca8 {[%emt 0:10:29]} 29. a6 {[%emt 0:04:57]} Rb8 {
[%emt 0:00:09]} 30. Kf2 {[%emt 0:02:03]} Rb6 {[%emt 0:05:14]} 31. e4 {
[%emt 0:02:59]} f6 {[%emt 0:02:33]} 32. Ke3 {[%emt 0:01:37]} Nf8 {
[%emt 0:05:11]} 33. Ra5 {[%emt 0:03:25]} Nd7 {[%emt 0:00:40]} 34. Rc2 {
[%emt 0:02:58]} h6 {[%emt 0:03:09]} 35. Kd4 {[%emt 0:01:21]} Rb1 {
[%emt 0:00:15]} 36. Bd3 {[%emt 0:01:12]} Rb6 {[%emt 0:00:54]} 37. Kc3 {
[%emt 0:01:05]} Kd6 {[%emt 0:00:17]} 38. Re2 {[%emt 0:01:20]} Ke7 {
[%emt 0:02:14]} 39. Rb2 {[%emt 0:01:49]} Rxb2 {[%emt 0:00:54]} 40. Kxb2 {
[%emt 0:00:01]} Kd6 {[%emt 0:00:09]} 41. Kc3 {[%emt 0:00:12]} Kc7 {
[%emt 0:01:16]} 42. Kd4 {[%emt 0:00:34]} Kb6 {[%emt 0:02:16]} 43. Ra2 {
[%emt 0:00:15]} Nf8 {[%emt 0:01:03]} 44. Rb2+ {[%emt 0:00:14]} Kc7 {
[%emt 0:00:01]} 45. Bc4 {[%emt 0:00:15]} Nd7 {[%emt 0:00:12]} 46. e5 {
[%emt 0:00:30]} fxe5+ {[%emt 0:00:00]} 47. fxe5 {[%emt 0:00:01]} c5+ {
[%emt 0:00:13]} 48. Kd5 {[%emt 0:01:07]} Nb6+ {[%emt 0:00:07]} 49. Rxb6 {
[%emt 0:00:05]} Kxb6 {[%emt 0:00:02]} 50. e6 {[%emt 0:00:22]} Rc7 {
[%emt 0:01:51]} 51. h4 {[%emt 0:00:10]} g5 {[%emt 0:00:18]} 52. hxg5 {
[%emt 0:00:07]} hxg5 {[%emt 0:00:01]} 53. g4 {[%emt 0:00:08]} Rh7 {
[%emt 0:00:25]} 54. Kd6 {[%emt 0:00:07]} Rh1 {[%emt 0:00:11]} 55. e7 {
[%emt 0:00:08]} 1-0

[Event "OGD Prinsenstad-toernooi - A groep"]
[Site "Delft"]
[Date "2013.03.30"]
[Round "3.7"]
[White "Hoeksema, Erik"]
[Black "Van den Doel, Erik"]
[Result "1/2-1/2"]
[ECO "A28"]
[WhiteElo "2347"]
[BlackElo "2552"]
[PlyCount "57"]
[EventDate "2013.03.29"]
[EventType "swiss"]
[EventRounds "6"]
[EventCountry "NED"]
[Source "DSC"]
[SourceDate "2013.02.04"]
[TimeControl "6000+10"]

1. c4 {[%emt 0:00:34]} Nf6 {[%emt 0:01:33]} 2. Nc3 {[%emt 0:00:10]} e5 {
[%emt 0:00:12]} 3. Nf3 {[%emt 0:00:07]} Nc6 {[%emt 0:00:04]} 4. e3 {
[%emt 0:00:06]} Be7 {[%emt 0:00:20]} 5. d4 {[%emt 0:03:53]} exd4 {
[%emt 0:00:05]} 6. Nxd4 {[%emt 0:00:07]} Bb4 {[%emt 0:00:10]} 7. Be2 {
[%emt 0:04:16]} Bxc3+ {[%emt 0:04:15]} 8. bxc3 {[%emt 0:00:06]} O-O {
[%emt 0:00:04]} 9. O-O {[%emt 0:00:18]} Re8 {[%emt 0:02:24]} 10. Qc2 {
[%emt 0:02:11]} Ne5 {[%emt 0:09:08]} 11. e4 {[%emt 0:07:05]} d6 {[%emt 0:01:54]
} 12. Rd1 {[%emt 0:12:07]} Ng6 {[%emt 0:09:35]} 13. f3 {[%emt 0:01:42]} c6 {
[%emt 0:01:03]} 14. Bf1 {[%emt 0:00:43]} d5 {[%emt 0:03:28]} 15. exd5 {
[%emt 0:14:53]} cxd5 {[%emt 0:00:06]} 16. Bg5 {[%emt 0:01:58]} dxc4 {
[%emt 0:05:51]} 17. Bxc4 {[%emt 0:00:25]} Ne5 {[%emt 0:13:29]} 18. Bb3 {
[%emt 0:02:47]} Bd7 {[%emt 0:12:17]} 19. Kh1 {[%emt 0:04:14]} Qb6 {
[%emt 0:01:02]} 20. Rab1 {[%emt 0:03:52]} Qa6 {[%emt 0:00:37]} 21. Nf5 {
[%emt 0:02:28]} Bxf5 {[%emt 0:00:49]} 22. Qxf5 {[%emt 0:00:03]} Rac8 {
[%emt 0:01:21]} 23. Re1 {[%emt 0:04:57]} Ned7 {[%emt 0:05:47]} 24. h4 {
[%emt 0:04:31]} Qc6 {[%emt 0:07:11]} 25. Rbd1 {[%emt 0:02:11]} Kf8 {
[%emt 0:04:37]} 26. Bf4 {[%emt 0:03:53]} Kg8 {[%emt 0:05:10]} 27. Bg5 {
[%emt 0:00:09]} Kf8 {[%emt 0:00:04]} 28. Bf4 {[%emt 0:00:06]} Kg8 {
[%emt 0:00:04]} 29. Bg5 {[%emt 0:00:05]} 1/2-1/2

[Event "OGD Prinsenstad-toernooi - A groep"]
[Site "Delft"]
[Date "2013.03.30"]
[Round "3.8"]
[White "Barendse, Ted"]
[Black "Hovhanisian, Mher"]
[Result "0-1"]
[ECO "D15"]
[WhiteElo "2182"]
[BlackElo "2494"]
[PlyCount "78"]
[EventDate "2013.03.29"]
[EventType "swiss"]
[EventRounds "6"]
[EventCountry "NED"]
[Source "DSC"]
[SourceDate "2013.02.04"]
[TimeControl "6000+10"]

1. d4 d5 2. c4 c6 3. Nf3 Nf6 4. Nc3 a6 5. a4 e6 6. Bg5 Bb4 7. e3 Qa5 8. Bxf6
Bxc3+ 9. bxc3 Qxc3+ 10. Nd2 gxf6 11. cxd5 exd5 12. Be2 Bf5 13. O-O Nd7 14. Rc1
Qa3 15. Bf3 O-O 16. e4 dxe4 17. Bxe4 Bg6 18. d5 cxd5 19. Bxd5 Nc5 20. Nc4 Qb4
21. a5 Rad8 22. Qf3 Rfe8 23. Ne3 Nd3 24. Rb1 Qxa5 25. Ng4 Rd6 26. Rxb7 Ne5 27.
Nxe5 Rxe5 28. Bc4 Qa4 29. Bb3 Qd4 30. g3 Kg7 31. Rc1 Rd7 32. Rxd7 Qxd7 33. Bc4
Qd2 34. Rf1 a5 35. h4 h5 36. Qa3 Re1 37. Qf3 Rxf1+ 38. Bxf1 Qb4 39. Bd3 Qc3 0-1

[Event "OGD Prinsenstad-toernooi - A groep"]
[Site "Delft"]
[Date "2013.03.30"]
[Round "3.9"]
[White "Blum, Gernot"]
[Black "Peng, Zhaoqin"]
[Result "0-1"]
[ECO "A29"]
[WhiteElo "2105"]
[BlackElo "2385"]
[PlyCount "86"]
[EventDate "2013.03.29"]
[EventType "swiss"]
[EventRounds "6"]
[EventCountry "NED"]
[Source "DSC"]
[SourceDate "2013.02.04"]
[TimeControl "6000+10"]

1. c4 {[%emt 0:00:00]} Nf6 {[%emt 0:01:34]} 2. Nc3 {[%emt 0:00:00]} e5 {
[%emt 0:00:49]} 3. Nf3 {[%emt 0:00:14]} Nc6 {[%emt 0:00:11]} 4. g3 {
[%emt 0:00:16]} Bb4 {[%emt 0:00:57]} 5. Nd5 {[%emt 0:00:27]} Bd6 {
[%emt 0:00:37]} 6. Nc3 {[%emt 0:05:20]} O-O {[%emt 0:00:43]} 7. Bg2 {
[%emt 0:00:26]} Re8 {[%emt 0:01:08]} 8. O-O {[%emt 0:00:26]} Bb4 {
[%emt 0:05:27]} 9. d3 {[%emt 0:04:37]} h6 {[%emt 0:03:08]} 10. Bd2 {
[%emt 0:00:56]} a5 {[%emt 0:06:35]} 11. a3 {[%emt 0:00:59]} Bc5 {[%emt 0:01:39]
} 12. e3 {[%emt 0:02:48]} d6 {[%emt 0:03:29]} 13. Nd5 {[%emt 0:02:00]} Be6 {
[%emt 0:06:12]} 14. Ne1 {[%emt 0:03:01]} Bxd5 {[%emt 0:03:53]} 15. cxd5 {
[%emt 0:00:10]} Ne7 {[%emt 0:00:14]} 16. e4 {[%emt 0:03:16]} c6 {[%emt 0:01:41]
} 17. dxc6 {[%emt 0:00:28]} Nxc6 {[%emt 0:00:05]} 18. Nc2 {[%emt 0:00:22]} a4 {
[%emt 0:05:11]} 19. Ne3 {[%emt 0:03:12]} Nd4 {[%emt 0:01:01]} 20. Bc3 {
[%emt 0:01:51]} Qb6 {[%emt 0:10:46]} 21. Bxd4 {[%emt 0:03:56]} Bxd4 {
[%emt 0:00:02]} 22. Nc4 {[%emt 0:00:43]} Qa6 {[%emt 0:00:58]} 23. Qe2 {
[%emt 0:02:39]} Rad8 {[%emt 0:01:31]} 24. Rac1 {[%emt 0:10:19]} d5 {
[%emt 0:06:07]} 25. exd5 {[%emt 0:02:15]} Nxd5 {[%emt 0:00:12]} 26. Rc2 {
[%emt 0:02:01]} Nf6 {[%emt 0:06:55]} 27. Rfc1 {[%emt 0:05:33]} Re7 {
[%emt 0:05:55]} 28. Nd2 {[%emt 0:00:33]} Qb6 {[%emt 0:02:39]} 29. Ne4 {
[%emt 0:04:30]} Nd5 {[%emt 0:03:54]} 30. Nc5 {[%emt 0:00:35]} Qa7 {
[%emt 0:04:12]} 31. Nxa4 {[%emt 0:02:36]} Qxa4 {[%emt 0:01:14]} 32. Bxd5 {
[%emt 0:00:18]} Rxd5 {[%emt 0:01:18]} 33. Rc8+ {[%emt 0:00:31]} Re8 {
[%emt 0:00:19]} 34. R1c4 {[%emt 0:01:58]} Qd7 {[%emt 0:00:25]} 35. Qe4 {
[%emt 0:01:11]} Rxc8 {[%emt 0:00:42]} 36. Rxc8+ {[%emt 0:00:10]} Qxc8 {
[%emt 0:00:03]} 37. Qxd5 {[%emt 0:00:11]} Qc2 {[%emt 0:00:22]} 38. Qf3 {
[%emt 0:00:22]} Qxb2 {[%emt 0:00:17]} 39. a4 {[%emt 0:00:04]} g6 {
[%emt 0:00:40]} 40. h4 {[%emt 0:00:38]} Kg7 {[%emt 0:00:19]} 41. Kg2 {
[%emt 0:00:03]} b6 {[%emt 0:00:43]} 42. g4 {[%emt 0:00:24]} Qd2 {[%emt 0:00:58]
} 43. Kf1 {[%emt 0:00:19]} Qf4 {[%emt 0:01:11]} 0-1

[Event "OGD Prinsenstad-toernooi - A groep"]
[Site "Delft"]
[Date "2013.03.31"]
[Round "4.1"]
[White "Smeets, Jan"]
[Black "Haslinger, Stewart"]
[Result "1-0"]
[ECO "C67"]
[WhiteElo "2627"]
[BlackElo "2547"]
[PlyCount "119"]
[EventDate "2013.03.29"]
[EventType "swiss"]
[EventRounds "6"]
[EventCountry "NED"]
[Source "DSC"]
[SourceDate "2013.02.04"]
[TimeControl "6000+10"]

1. e4 {[%emt 0:00:37]} e5 {[%emt 0:00:00]} 2. Nf3 {[%emt 0:00:05]} Nc6 {
[%emt 0:00:04]} 3. Bb5 {[%emt 0:00:04]} Nf6 {[%emt 0:00:05]} 4. O-O {
[%emt 0:01:23]} Nxe4 {[%emt 0:00:18]} 5. d4 {[%emt 0:00:13]} Nd6 {
[%emt 0:00:13]} 6. Bxc6 {[%emt 0:00:06]} dxc6 {[%emt 0:00:04]} 7. dxe5 {
[%emt 0:00:06]} Nf5 {[%emt 0:00:04]} 8. Qxd8+ {[%emt 0:00:07]} Kxd8 {
[%emt 0:00:04]} 9. Nc3 {[%emt 0:00:08]} Ke8 {[%emt 0:00:06]} 10. h3 {
[%emt 0:01:26]} h5 {[%emt 0:00:14]} 11. Rd1 {[%emt 0:17:50]} Be7 {
[%emt 0:03:27]} 12. Ne4 {[%emt 0:04:42]} Be6 {[%emt 0:03:04]} 13. Nfg5 {
[%emt 0:00:33]} Bd5 {[%emt 0:00:18]} 14. b3 {[%emt 0:00:30]} b5 {[%emt 0:01:34]
} 15. Nc3 {[%emt 0:01:07]} Rd8 {[%emt 0:00:16]} 16. Bf4 {[%emt 0:01:29]} b4 {
[%emt 0:05:27]} 17. Nxd5 {[%emt 0:01:36]} Rxd5 {[%emt 0:00:05]} 18. Nf3 {
[%emt 0:03:52]} Rg8 {[%emt 0:01:45]} 19. g4 {[%emt 0:03:42]} hxg4 {
[%emt 0:07:35]} 20. hxg4 {[%emt 0:00:10]} Nh4 {[%emt 0:08:50]} 21. Nxh4 {
[%emt 0:00:50]} g5 {[%emt 0:00:10]} 22. Bh2 {[%emt 0:03:33]} gxh4 {
[%emt 0:00:07]} 23. f3 {[%emt 0:00:04]} Bc5+ {[%emt 0:34:25]} 24. Kg2 {
[%emt 0:02:03]} Bd4 {[%emt 0:00:05]} 25. Rab1 {[%emt 0:14:51]} Ke7 {
[%emt 0:01:43]} 26. Rd3 {[%emt 0:05:28]} h3+ {[%emt 0:06:01]} 27. Kxh3 {
[%emt 0:16:17]} Rh8+ {[%emt 0:00:16]} 28. Kg2 {[%emt 0:00:06]} Bxe5 {
[%emt 0:00:03]} 29. Bxe5 {[%emt 0:01:04]} Rxe5 {[%emt 0:00:04]} 30. Kg3 {
[%emt 0:03:58]} Re2 {[%emt 0:06:21]} 31. Rd4 {[%emt 0:09:42]} a5 {
[%emt 0:11:29]} 32. Rc4 {[%emt 0:02:48]} Rhh2 {[%emt 0:00:02]} 33. Rc1 {
[%emt 0:01:29]} Kd6 {[%emt 0:02:53]} 34. Rd1+ {[%emt 0:01:47]} Ke7 {
[%emt 0:00:14]} 35. Rc1 {[%emt 0:00:43]} Kd6 {[%emt 0:00:03]} 36. c3 {
[%emt 0:00:46]} Rc2 {[%emt 0:00:04]} 37. Rd1+ {[%emt 0:00:37]} Ke7 {
[%emt 0:02:48]} 38. Re4+ {[%emt 0:00:01]} Kf8 {[%emt 0:01:06]} 39. cxb4 {
[%emt 0:00:01]} axb4 {[%emt 0:00:30]} 40. Rxb4 {[%emt 0:00:16]} Rxa2 {
[%emt 0:00:17]} 41. Rd7 {[%emt 0:00:22]} Rag2+ {[%emt 0:02:13]} 42. Kf4 {
[%emt 0:00:01]} Rf2 {[%emt 0:00:04]} 43. Rc4 {[%emt 0:00:14]} Rh6 {
[%emt 0:01:41]} 44. Kg3 {[%emt 0:00:01]} Rb2 {[%emt 0:00:20]} 45. Rf4 {
[%emt 0:00:07]} Rh7 {[%emt 0:00:14]} 46. b4 {[%emt 0:00:08]} Ke8 {
[%emt 0:00:39]} 47. Rxc7 {[%emt 0:00:03]} Rh6 {[%emt 0:00:07]} 48. Rcxf7 {
[%emt 0:00:23]} Rxb4 {[%emt 0:00:03]} 49. Rf8+ {[%emt 0:00:10]} Ke7 {
[%emt 0:00:00]} 50. Rxb4 {[%emt 0:00:06]} Kxf8 {[%emt 0:00:01]} 51. Rb7 {
[%emt 0:00:15]} Rh1 {[%emt 0:00:14]} 52. g5 {[%emt 0:00:05]} c5 {[%emt 0:00:06]
} 53. Rc7 {[%emt 0:00:08]} Rc1 {[%emt 0:00:02]} 54. Kf4 {[%emt 0:00:16]} c4 {
[%emt 0:00:02]} 55. Kf5 {[%emt 0:00:13]} c3 {[%emt 0:00:05]} 56. Kf6 {
[%emt 0:00:13]} Ke8 {[%emt 0:00:07]} 57. f4 {[%emt 0:00:04]} Kd8 {
[%emt 0:01:03]} 58. Rc4 {[%emt 0:00:01]} c2 {[%emt 0:00:10]} 59. f5 {
[%emt 0:00:14]} Kd7 {[%emt 0:00:10]} 60. g6 {[%emt 0:00:01]} 1-0

[Event "OGD Prinsenstad-toernooi - A groep"]
[Site "Delft"]
[Date "2013.03.31"]
[Round "4.2"]
[White "Reinderman, Dimitri"]
[Black "L'Ami, Erwin"]
[Result "0-1"]
[ECO "A20"]
[WhiteElo "2573"]
[BlackElo "2615"]
[PlyCount "82"]
[EventDate "2013.03.29"]
[EventType "swiss"]
[EventRounds "6"]
[EventCountry "NED"]
[Source "DSC"]
[SourceDate "2013.02.04"]
[TimeControl "6000+10"]

1. c4 {[%emt 0:00:00]} e5 {[%emt 0:00:26]} 2. g3 {[%emt 0:00:22]} Nc6 {
[%emt 0:00:19]} 3. Bg2 {[%emt 0:00:11]} f5 {[%emt 0:00:08]} 4. Nc3 {
[%emt 0:00:08]} Nf6 {[%emt 0:00:08]} 5. e3 {[%emt 0:00:11]} g6 {[%emt 0:00:44]}
6. Nge2 {[%emt 0:00:14]} Bg7 {[%emt 0:00:09]} 7. O-O {[%emt 0:01:03]} O-O {
[%emt 0:01:08]} 8. d4 {[%emt 0:01:05]} d6 {[%emt 0:02:04]} 9. Rb1 {
[%emt 0:04:03]} a5 {[%emt 0:10:43]} 10. a3 {[%emt 0:01:06]} Kh8 {[%emt 0:06:21]
} 11. b4 {[%emt 0:00:44]} axb4 {[%emt 0:00:06]} 12. axb4 {[%emt 0:00:04]} Ne7 {
[%emt 0:05:11]} 13. Qb3 {[%emt 0:04:29]} c6 {[%emt 0:03:27]} 14. Rd1 {
[%emt 0:06:13]} e4 {[%emt 0:03:15]} 15. f3 {[%emt 0:08:55]} d5 {[%emt 0:01:30]}
16. cxd5 {[%emt 0:07:05]} Nexd5 {[%emt 0:02:51]} 17. Nxd5 {[%emt 0:08:12]} Nxd5
{[%emt 0:02:34]} 18. Nf4 {[%emt 0:08:52]} Nxf4 {[%emt 0:06:53]} 19. exf4 {
[%emt 0:01:02]} Re8 {[%emt 0:05:06]} 20. fxe4 {[%emt 0:03:29]} fxe4 {
[%emt 0:00:28]} 21. Be3 {[%emt 0:01:24]} Be6 {[%emt 0:00:39]} 22. Qc3 {
[%emt 0:02:14]} Bd5 {[%emt 0:01:58]} 23. Ra1 {[%emt 0:01:45]} Qe7 {
[%emt 0:01:57]} 24. Bh3 {[%emt 0:09:03]} Bf8 {[%emt 0:02:44]} 25. Rdb1 {
[%emt 0:01:51]} b5 {[%emt 0:01:57]} 26. Bg4 {[%emt 0:10:54]} Rxa1 {
[%emt 0:03:58]} 27. Qxa1 {[%emt 0:00:09]} Qb7 {[%emt 0:00:12]} 28. Qc3 {
[%emt 0:01:28]} Ra8 {[%emt 0:01:26]} 29. f5 {[%emt 0:02:07]} Qa7 {
[%emt 0:03:57]} 30. fxg6 {[%emt 0:08:20]} hxg6 {[%emt 0:00:06]} 31. Bd1 {
[%emt 0:00:43]} Qa3 {[%emt 0:03:48]} 32. Bb3 {[%emt 0:00:37]} Bxb4 {
[%emt 0:00:49]} 33. Qc2 {[%emt 0:00:15]} Bf8 {[%emt 0:00:34]} 34. Kh1 {
[%emt 0:02:07]} Qd6 {[%emt 0:02:13]} 35. Bf4 {[%emt 0:01:17]} Qe6 {
[%emt 0:00:07]} 36. Bxd5 {[%emt 0:02:21]} Qxd5 {[%emt 0:00:09]} 37. Qg2 {
[%emt 0:00:30]} Bg7 {[%emt 0:01:16]} 38. Re1 {[%emt 0:00:24]} Bxd4 {
[%emt 0:01:34]} 39. g4 {[%emt 0:01:13]} Ra2 {[%emt 0:02:10]} 40. Qh3+ {
[%emt 0:00:12]} Kg8 {[%emt 0:00:06]} 41. Be3 {[%emt 0:00:13]} Be5 {
[%emt 0:00:42]} 0-1